Workbook

Sheet Sheet1
A1: Austroasiatic data for phylogenetic analyses (2015 version). Actual data starts at line 336, above that is metadata. Compiled by Paul Sidwell, assisted by Daniel Frost. Financial support gratefully acknowledged: MPI Jena, ARC Canberra, CRLC Bangkok, ANU Canberra. Please report errors/correction to <paulsidwell@gmail.com>
B2: Missing word key | I2: Geodata
B3: Language | C3: Symbol | D3: Count | E3: Ratio | F3: % | G3: Source | I3: lat | J3: lon
A4: =A3+($B3<>$B4) -> 1 | B4: Alak | C4: ~ | D4: =SUM(LEN(H331:H29970)-LEN(SUBSTITUTE(H331:H29970,"~","")))/LEN("~") -> 7 | E4: =D4/200 -> 0.035 | F4: =(1-E4)*100 -> 96.5 | G4: Huffman, Franklin E. 1971. Vocabulary Lists (Mon-Khmer) 20 languages. Unpublished ms. | H4: alk | I4: 15.5565 | J4: 106.59719
A5: 2 | B5: War-Lamin | C5: x | D5: =SUM(LEN(H252:H29929)-LEN(SUBSTITUTE(H252:H29929,"x","")))/LEN(">") -> 1 | E5: 0.005 | F5: 99.5 | G5: Mankular Lemin Keshnga. Ms. 2013. draft War-Lamin dictionary. | H5: aml | I5: 25.84256 | J5: 91.25587
A6: 3 | B6: Bugan | C6: 7 | D6: =SUM(LEN(H244:H29921)-LEN(SUBSTITUTE(H244:H29921,"7","")))/LEN(">") -> 7 | E6: 0.035 | F6: 96.5 | G6: LiJinFang. ms. , Bugan lexicon provided for Austroasiatic Handbook. | H6: bbh | I6: 23.61242 | J6: 104.96286
A7: 4 | B7: Bahnar-Golar | C7: f | D7: =SUM(LEN(H272:H29949)-LEN(SUBSTITUTE(H272:H29949,"e","")))/LEN(">") -> 55 | E7: 0.275 | F7: 72.5 | G7: Banker, Elizabeth M., Sip and Mơ. 1973. Bahnar Language Lessons (Pleiku Province). Trilingual Language Lessons, No. 20. Manila, Summer Institute of Linguistics. | H7: bdq | I7: 14 | J7: 107.85
A8: 5 | B8: Bahnar-Kontum | C8: g | D8: =SUM(LEN(H272:H29949)-LEN(SUBSTITUTE(H272:H29949,"g","")))/LEN(">") -> 15 | E8: 0.075 | F8: 92.5 | G8: Banker, Elizabeth M., Sip and Mơ. 1973. Bahnar Language Lessons (Pleiku Province). Trilingual Language Lessons, No. 20. Manila, Summer Institute of Linguistics. | H8: bdq | I8: 14.66117 | J8: 107.83995
A9: 6 | B9: Bahnar-Pleiku | C9: h | D9: =SUM(LEN(H272:H29949)-LEN(SUBSTITUTE(H272:H29949,"h","")))/LEN(">") -> 19 | E9: 0.095 | F9: 90.5 | G9: Banker, Elizabeth M., Sip and Mơ. 1973. Bahnar Language Lessons (Pleiku Province). Trilingual Language Lessons, No. 20. Manila, Summer Institute of Linguistics. | H9: bdq | I9: 14.04764 | J9: 108.47084
A10: 7 | B10: Bondo | C10: ɒ | D10: =SUM(LEN(H308:H29947)-LEN(SUBSTITUTE(H308:H29947,"ɒ","")))/LEN(">") -> 18 | E10: 0.09 | F10: 91 | G10: Bhattacharya, Sudhibhushan. 1968. A Bonda Dictionary. Poona: Deccan College (Building Centenary and Silver Jubilee Series 18) | H10: bfw | I10: 19.15124 | J10: 83.81415
A11: 8 | B11: Buxing | C11: ʀ | D11: =SUM(LEN(H302:H29941)-LEN(SUBSTITUTE(H302:H29941,"ʀ","")))/LEN(">") -> 9 | E11: 0.045 | F11: 95.5 | G11: Gao Yongqi [高永奇]. 2004. A study of Buxing [Buxing yu yanjiu 布兴语研究]. Beijing: Minzu University Press [民族出版社]. | H11: bgk | I11: 21.24901 | J11: 101.7964
A12: 9 | B12: KhaBit | C12: ˣ | D12: =SUM(LEN(H224:H29901)-LEN(SUBSTITUTE(H224:H29901,"ˣ","")))/LEN(">") -> 1 | E12: 0.005 | F12: 99.5 | G12: Badenoch, Nathan. 2015.n Ms. Khabit lexicon. | H12: bgk | I12: 21.44574 | J12: 102.03513
A13: 10 | B13: Mundari-Birhor | C13: ø | D13: =SUM(LEN(H312:H29951)-LEN(SUBSTITUTE(H312:H29951,"ø","")))/LEN(">") -> 63 | E13: 0.315 | F13: 68.5 | G13: Roy, Sarat Chandra. 1925. The Birhors: a little-known jungle tribe of Chota Nagpur. Ranchi | H13: biy | I13: 23.585 | J13: 85.56115
A14: 11 | B14: Brao | C14: i | D14: =SUM(LEN(H276:H29953)-LEN(SUBSTITUTE(H276:H29953,"i","")))/LEN(">") -> 34 | E14: 0.17 | F14: 83 | G14: Huffman, Franklin E. 1971. Vocabulary Lists (Mon-Khmer) 20 languages. Unpublished ms. | H14: brb | I14: 14.10224 | J14: 107.23487
A15: 12 | B15: Bru-Ubon | C15: ŋ | D15: =SUM(LEN(H321:H29960)-LEN(SUBSTITUTE(H321:H29960,"ŋ","")))/LEN(">") -> 8 | E15: 0.04 | F15: 96 | G15: Huffman, Franklin E. 1971. Vocabulary Lists (Mon-Khmer) 20 languages. Unpublished ms. | H15: bru | I15: 17.26486 | J15: 104.26974
A16: 13 | B16: Bru-QuangTri | C16: ʃ | D16: =SUM(LEN(H321:H29960)-LEN(SUBSTITUTE(H321:H29960,"ʃ","")))/LEN(">") -> 49 | E16: 0.245 | F16: 75.5 | G16: Miller, John D. 1976. Bru Vocabulary. Summer Institute of Linguistics, Huntington Beach | H16: brv | I16: 17.0064 | J16: 106.56118
A17: 14 | B17: Bumang | C17: ɽ | D17: =SUM(LEN(H309:H29948)-LEN(SUBSTITUTE(H309:H29948,"ɽ","")))/LEN(">") -> 10 | E17: 0.05 | F17: 95 | G17: Dao Jie 刀洁. 2007. Bumang yu yanjiu 布芒语研究 [A study of Bumang]. Beijing: 民族出版社 [Nationalities Publishing House]. | H17: bvp | I17: 21.9676 | J17: 100.14
A18: 15 | B18: Car | C18: ᶜ | D18: =SUM(LEN(H250:H29927)-LEN(SUBSTITUTE(H250:H29927,"ᶜ","")))/LEN(">") -> 5 | E18: 0.025 | F18: 97.5 | G18: Whitehead, George. 1925. Dictionary of the Car-Nicobarese language. Rangoon, American Baptist Mission Press. | H18: caq | I18: 9.18853 | J18: 92.76706
A19: 16 | B19: Nyahkur | C19: 0 | D19: =SUM(LEN(H254:H29931)-LEN(SUBSTITUTE(H254:H29931,"0","")))/LEN(">") -> 0 | E19: 0 | F19: 100 | G19: Theraphan Luang-Thongkum. 1984. Nyah Kur (Chao Bon) - Thai - English Dictionary. Bangkok, Chulalongkorn University Printing House. | H19: cbn | I19: 15.89091 | J19: 101.51465
A20: 17 | B20: Bunong | C20: ɯ | D20: =SUM(LEN(H295:H29972)-LEN(SUBSTITUTE(H295:H29972,"ɯ","")))/LEN(">") -> 43 | E20: 0.215 | F20: 78.5 | G20: Butler Butler. Bunong lexicon provided for Austroasiatic Handbook. | H20: cmo | I20: 12.4219 | J20: 107.155
A21: 18 | B21: Khaonh | C21: [ | D21: =SUM(LEN(H352:H29991)-LEN(SUBSTITUTE(H352:H29991,"[","")))/LEN("[") -> 38 | E21: 0.19 | F21: 81 | G21: Barr, Julie and Eric Pawley. 2013. Bahnaric Language Cluster Survey of Mondul Kiri and Kratie Provinces, Cambodia. SIL International, Electronic Survey Report 2013-001. | H21: cmo | I21: 12.6092 | J21: 105.9575
A22: 19 | B22: Mel | C22: ] | D22: =SUM(LEN(H352:H29991)-LEN(SUBSTITUTE(H352:H29991,"]","")))/LEN("]") -> 38 | E22: 0.19 | F22: 81 | G22: Barr, Julie and Eric Pawley. 2013. Bahnaric Language Cluster Survey of Mondul Kiri and Kratie Provinces, Cambodia. SIL International, Electronic Survey Report 2013-001. | H22: cmo | I22: 13.1582 | J22: 106.2052
A23: 20 | B23: Chong(Huffman) | C23: ʳ | D23: =SUM(LEN(H241:H29918)-LEN(SUBSTITUTE(H241:H29918,"ʳ","")))/LEN(">") -> 16 | E23: 0.08 | F23: 92 | G23: Huffman, Franklin E. 1971. Vocabulary Lists (Mon-Khmer) 20 languages. Unpublished ms. | H23: cog | I23: 12.7267 | J23: 102.232
A24: 21 | B24: Chong-Kasong | C24: < | D24: =SUM(LEN(H336:H29975)-LEN(SUBSTITUTE(H336:H29975,"<","")))/LEN("<") -> 30 | E24: 0.15 | F24: 85 | G24: Noppawan Thongkham. 2003. The phonology of Kasong at Khlong Saeng Village,Danchumphon sub-District, Bo Rai District, Trat Province, MA thesis, Mahidol University. | H24: cog | I24: 12.87518 | J24: 102.16769
A25: 22 | B25: Pear-KompongSpeu | C25: ⱳ | D25: =SUM(LEN(H319:H29958)-LEN(SUBSTITUTE(H319:H29958,"ⱳ","")))/LEN(">") -> 8 | E25: 0.04 | F25: 96 | G25: Baradat, R. 1941b. Les dialectes des tribus samre. Manuscript held at l’Ecole Francaise d’Extreme-Orient, Paris. 267p. | H25: cog | I25: 11.6155 | J25: 104.3792
A26: 23 | B26: Chrau | C26: ) | D26: =SUM(LEN(H350:H29989)-LEN(SUBSTITUTE(H350:H29989,")","")))/LEN(")") -> 30 | E26: 0.15 | F26: 85 | G26: homas, David & Dorothy Thomas. 1961. Chrau-Vietnamese-English. Saigon, Summer Institute of Linguistics. | H26: crw | I26: 10.80208 | J26: 107.29291
A27: 24 | B27: Cua | C27: j | D27: =SUM(LEN(H288:H29965)-LEN(SUBSTITUTE(H288:H29965,"j","")))/LEN(">") -> 7 | E27: 0.035 | F27: 96.5 | G27: Maier, Jacqueline & E. Burton. 1981. Cua-English-Vietnamese Dictionary: 1981 pre-publication manuscript based on a 1966 manuscript. | H27: cua | I27: 15.16883 | J27: 108.43092
A28: 25 | B28: Cheq-Wong | C28: ʏ | D28: =SUM(LEN(H309:H29948)-LEN(SUBSTITUTE(H309:H29948,"ʏ","")))/LEN(">") -> 65 | E28: 0.325 | F28: 67.5 | G28: Burenhult, Niclas. Ms. Spreadsheet of Aslian lexicostatistical data. | H28: cwg | I28: 3.83331 | J28: 102.08116
A29: 26 | B29: Danaw(AungSi) | C29: ᵉ | D29: =SUM(LEN(H259:H29936)-LEN(SUBSTITUTE(H259:H29936,"ᵉ","")))/LEN(">") -> 39 | E29: 0.195 | F29: 80.5 | G29: Ong Si. 2014 ms. , Danaw lexicon provided for Austroasiatic Handbook. | H29: dnu | I29: 20.6167 | J29: 96.7666
A30: 27 | B30: Danaw(Luce) | C30: ᶠ | D30: =SUM(LEN(H259:H29936)-LEN(SUBSTITUTE(H259:H29936,"ᶠ","")))/LEN(">") -> 15 | E30: 0.075 | F30: 92.5 | G30: Luce, Gordon H. 1965. Danaw, a dying Austroasiatic language. Lingua 14:98-129. + Luce manuscript. | H30: dnu | I30: 20.4957 | J30: 96.99805
A31: 28 | B31: Gta' | C31: æ | D31: =SUM(LEN(H326:H29965)-LEN(SUBSTITUTE(H326:H29965,"æ","")))/LEN(">") -> 24 | E31: 0.12 | F31: 88 | G31: Chatterji, Suhas and P.N. Chakravarti. 1963. Gata' Word List. Unpublished mimeograph, 1968. University of Chicago. /Mahapatra, Khageswar. n.d. Gta' Word List. Unpublished manuscript. | H31: gaq | I31: 18.6076 | J31: 82.98397
A32: 29 | B32: Bodo-Gadaba | C32: ɑ | D32: =SUM(LEN(H329:H29968)-LEN(SUBSTITUTE(H329:H29968,"ɑ","")))/LEN(">") -> 10 | E32: 0.05 | F32: 95 | G32: Zide, Norman and Bimal Prasad Das and R. DeArmond. 1963. Gutob-English Wordlist, English-Gutob Wordlists.. Unpublished mimeograph. | H32: gbj | I32: 18.38575 | J32: 82.77099
A33: 30 | B33: Halang | C33: k | D33: =SUM(LEN(H293:H29970)-LEN(SUBSTITUTE(H293:H29970,"k","")))/LEN(">") -> 8 | E33: 0.04 | F33: 96 | G33: Cooper, James & Nancy Cooper. 1976. Halang Rhyming Dictionary: Halang-English. Dallas, Summer Institute of Linguistics. | H33: hal | I33: 14.60822 | J33: 107.57379
A34: 31 | B34: Wamo(挖墨) | C34: ᵖ | D34: =SUM(LEN(H253:H29930)-LEN(SUBSTITUTE(H253:H29930,"ᵖ","")))/LEN(">") -> 48 | E34: 0.24 | F34: 76 | G34: Andrew Hsiu, ms. The Angkuic languages: a preliminary survey. | H34: huo | I34: 23.37 | J34: 101.75
A35: 32 | B35: In | C35: % | D35: =SUM(LEN(H356:H29995)-LEN(SUBSTITUTE(H356:H29995,"%","")))/LEN("%") -> 10 | E35: 0.05 | F35: 95 | G35: Huffman, Franklin. 1979. In lexicon. Ms. | H35: irr | I35: 15.71875 | J35: 106.56415
A36: =A35+($B35<>$B36) -> 33 | B36: Jah-Hut | C36: β | D36: =SUM(LEN(H316:H29955)-LEN(SUBSTITUTE(H316:H29955,"β","")))/LEN(">") -> 66 | E36: =D36/200 -> 0.33 | F36: =(1-E36)*100 -> 67 | G36: Burenhult, Niclas. Ms. Spreadsheet of Aslian lexicostatistical data. | H36: jah | I36: 3.67619 | J36: 102.2913
A37: 34 | B37: Cheng | C37: * | D37: =SUM(LEN(H359:H29998)-LEN(SUBSTITUTE(H359:H29998,"*","")))/LEN("*") -> 38 | E37: 0.19 | F37: 81 | G37: Ferlus, Michel. 1969-70. Lexique Cheng-Laveh-Sapuan. Unpublished ms. | H37: jeg | I37: 15.03918 | J37: 107.14659
A38: 35 | B38: Jeh | C38: # | D38: =SUM(LEN(H358:H29997)-LEN(SUBSTITUTE(H358:H29997,"#","")))/LEN("#") -> 3 | E38: 0.015 | F38: 98.5 | G38: Gradin, Dwight, and Patrick Gradin. 1979. Jeh Dictionary. Huntington Beach CA, Summer Institute of Linguistics. | H38: jeh | I38: 15.19845 | J38: 107.89563
A39: 36 | B39: Jahai | C39: a | D39: =SUM(LEN(H309:H29986)-LEN(SUBSTITUTE(H309:H29986,"a","")))/LEN(">") -> 18 | E39: 0.09 | F39: 91 | G39: Burenhult, Niclas. Ms. Spreadsheet of Aslian lexicostatistical data. | H39: jhi | I39: 5.63695 | J39: 101.54145
A40: 37 | B40: Juang | C40: ʌ | D40: =SUM(LEN(H340:H29979)-LEN(SUBSTITUTE(H340:H29979,"ʌ","")))/LEN(">") -> 3 | E40: 0.015 | F40: 98.5 | G40: Pinnow, Heinz-Jürgen. 1960. “Beiträge zur Kenntnis der Juang-Sprache.” Unpublished Manuscript, Berlin/Matson, D.M. 1964. A Grammatical Sketch of Juang. Unpublished PhD-Dissertation, University of Wisconsin | H40: jun | I40: 21.26064 | J40: 85.58452
A41: 38 | B41: Kui(Huffman1979) | C41: ɟ | D41: =SUM(LEN(H328:H29967)-LEN(SUBSTITUTE(H328:H29967,"ɟ","")))/LEN(">") -> 1 | E41: 0.005 | F41: 99.5 | G41: Huffman, Franklin. 1979. Kui of Srisaket lexicon. Ms. | H41: kdt | I41: 15.1186 | J41: 104.322
A42: 39 | B42: Kui(Sriwises1978) | C42: s | D42: =SUM(LEN(H294:H29971)-LEN(SUBSTITUTE(H294:H29971,"s","")))/LEN(">") -> 12 | E42: 0.06 | F42: 94 | G42: Prasert Sriwises. 1978. Kui (Suai)-Thai-English dictionary. Bangkok, Chulalongkorn University. 1978 Sealang (last 10 marked SRIKUI) | H42: kdt | I42: 14.938 | J42: 103.775
A43: 40 | B43: Kui-Ntua | C43: ʊ | D43: =SUM(LEN(H317:H29994)-LEN(SUBSTITUTE(H317:H29994,"ʊ","")))/LEN(">") -> 40 | E43: 0.2 | F43: 80 | G43: Kees Jan Bos, Kui-Ntua lexicon provided for Austroasiatic Handbook. | H43: kdt | I43: 13.7 | J43: 104.98
A44: 41 | B44: Souei-Saravan | C44: / | D44: =SUM(LEN(H359:H29998)-LEN(SUBSTITUTE(H359:H29998,"/","")))/LEN("/") -> 7 | E44: 0.035 | F44: 96.5 | G44: Huffman, Franklin. 1979. Souei-Saravan lexicon. Ms. | H44: kdt | I44: 15.8171 | J44: 106.2522
A45: 42 | B45: Korwa | C45: ɔ | D45: =SUM(LEN(H348:H29987)-LEN(SUBSTITUTE(H348:H29987,"ɔ","")))/LEN(">") -> 29 | E45: 0.145 | F45: 85.5 | G45: Bahl, K.C. 1962. Korwa Lexicon. South Asian Languages Program, University of Chicago (Mimeo) | H45: kfp | I45: 23.41015 | J45: 83.81422
A46: 43 | B46: Korku | C46: ɛ | D46: =SUM(LEN(H348:H29987)-LEN(SUBSTITUTE(H348:H29987,"ɛ","")))/LEN(">") -> 4 | E46: 0.02 | F46: 98 | G46: Nagaraja, K.S. 1999. Korku Language. Grammar Texts, and Vocabulary. Tokyo: Institute for the Study of Language and Cultures of Asia and Africa | H46: kfq | I46: 21.83579 | J46: 77.55409
A47: 44 | B47: Kasseng | C47: ? | D47: =SUM(LEN(H379:H30018)-LEN(SUBSTITUTE(H379:H30018,"?","")))/LEN("?") -> 21 | E47: 0.105 | F47: 89.5 | G47: Theraphan Luang-Thongkum. 2001. Languages of the Tribes in Xekong Province Southern Laos. Bangkok, The Thailand Reseach Fund. | H47: kgc | I47: 15.25616 | J47: 107.35139
A48: 45 | B48: Katang | C48: : | D48: =SUM(LEN(H361:H30000)-LEN(SUBSTITUTE(H361:H30000,":","")))/LEN(":") -> 2 | E48: 0.01 | F48: 99 | G48: Huffman, Franklin. 1979. Katang lexicon. Ms. | H48: kgd | I48: 16.18229 | J48: 106.4588
A49: 46 | B49: Khasi | C49: v | D49: =SUM(LEN(H298:H29975)-LEN(SUBSTITUTE(H298:H29975,"v","")))/LEN(">") -> 2 | E49: 0.01 | F49: 99 | G49: Nissor Singh, U. 1906. Khasi-English dictionary. Shillong: E. Bangal and Assam Secretariat Press. | H49: khi | I49: 25.56573 | J49: 92.00194
A50: 47 | B50: Khmer-Standard | C50: z | D50: =SUM(LEN(H295:H29972)-LEN(SUBSTITUTE(H295:H29972,"z","")))/LEN(">") -> 5 | E50: 0.025 | F50: 97.5 | G50: Huffman, Franklin E. 1971. Vocabulary Lists (Mon-Khmer) 20 languages. Unpublished ms. | H50: khm | I50: 11.4549 | J50: 104.49337
A51: 48 | B51: Kharia | C51: ɐ | D51: =SUM(LEN(H347:H29986)-LEN(SUBSTITUTE(H347:H29986,"ɐ","")))/LEN(">") -> 2 | E51: 0.01 | F51: 99 | G51: Pinnow, Heinz-Jürgen. 1959. Versuch Einer Historischen Lautlehre Der Kharia-Sprache. Wiesbaden, Otto Harrassowitz./Peterson, John. A Kharia-English Lexicon. Himalayan Linguistics, Archive 5. i-xv, 1-212. | H51: khr | I51: 22.35712 | J51: 84.39219
A52: 49 | B52: Khmu-Cuang | C52: 1 | D52: =SUM(LEN(H296:H29973)-LEN(SUBSTITUTE(H296:H29973,"1","")))/LEN(">") -> 1 | E52: 0.005 | F52: 99.5 | G52: Premsrirat, Suwilai. 2002. Thesaurus of Khmu Dialects in Southeast Asia. Institute of Language and Culture for Rural Development Mahidol University, Thailand. | H52: kjg | I52: 20.325 | J52: 104.1
A53: 50 | B53: Khmu-Theng | C53: + | D53: =SUM(LEN(H370:H30009)-LEN(SUBSTITUTE(H370:H30009,"+","")))/LEN("+") -> 18 | E53: 0.09 | F53: 91 | G53: Maspéro, Henri. 1955. Matériaux pour l'étude de la langue t'èng. Bulletin de l'Ecole Française d'Extrême Orient, 47:457-507. | H53: kjg | I53: 19.104 | J53: 104.466
A54: 51 | B54: Khmu-Yuan | C54: = | D54: =SUM(LEN(H370:H30009)-LEN(SUBSTITUTE(H370:H30009,"=","")))/LEN("=") -> 0 | E54: 0 | F54: 100 | G54: Svantesson, JAN-OLOF, KÀM RÀW (DAMRONG TAYANIN), KRISTINA LINDELL AND HÅKAN LUNDSTRÖM. 2014. DICTIONARY OF KAMMU YÙAN LANGUAGE AND CULTURE. NIAS PRESS, NIAS REFERENCE LIBRARY #6. | H54: kjg | I54: 20.48 | J54: 101.41
A55: 52 | B55: Khang | C55: ɨ | D55: =SUM(LEN(H326:H30003)-LEN(SUBSTITUTE(H326:H30003,"ɨ","")))/LEN(">") -> 10 | E55: 0.05 | F55: 95 | G55: Mikami, Naomitsu. 2003. A Khang Phonology and Wordlist. In Hiromi Ueda (ed.), Reports on Minority Languagesin Mainland Southeast Asia, 1-42. Endangered Languages of the Pacific Rim, Faculty of Informatics, Osaka Gakuin University. | H55: kjm | I55: 21.66243 | J55: 103.73637
A56: 53 | B56: Kensiw | C56: b | D56: =SUM(LEN(H325:H30002)-LEN(SUBSTITUTE(H325:H30002,"b","")))/LEN(">") -> 7 | E56: 0.035 | F56: 96.5 | G56: Bishop, Nancy N. & Mary M. Peterson. 1994. Kensiw glossary. Mon-Khmer Studies 23:163-195. | H56: kns | I56: 6.02922 | J56: 101.16023
A57: 54 | B57: Sre | C57: o | D57: =SUM(LEN(H313:H29990)-LEN(SUBSTITUTE(H313:H29990,"o","")))/LEN(">") -> 10 | E57: 0.05 | F57: 95 | G57: Dournes, Jacques. 1950. Dictionnaire Srê (Köhö)-Français. Saigon, des Missions Etrangères de Paris.1950 Sealang | H57: kpm | I57: 11.64436 | J57: 108.05721
A58: 55 | B58: Katu-AnDiem | C58: r | D58: =SUM(LEN(H311:H29988)-LEN(SUBSTITUTE(H311:H29988,"r","")))/LEN(">") -> 14 | E58: 0.07 | F58: 93 | G58: Costello, Nancy A. 1971. Ngữ-vựng Katu: Katu vocabulary. Vietnam Montagnard Language Series 5. Saigon, Department of Education. | H58: ktv | I58: 15.85534 | J58: 107.64367
A59: 56 | B59: Khmer-Surin | C59: y | D59: =SUM(LEN(H305:H29982)-LEN(SUBSTITUTE(H305:H29982,"y","")))/LEN(">") -> 21 | E59: 0.105 | F59: 89.5 | G59: Chantrupanth, Dhanan & Chartchai Phomjakagarin, 1978, Khmer (Surin) - Thai - English Dictionary. Bangkok, Chulalongkorn University. | H59: kxm | I59: 14.46743 | J59: 103.86313
A60: 57 | B60: Lameet-Lampang | C60: ᵍ | D60: =SUM(LEN(H288:H29965)-LEN(SUBSTITUTE(H288:H29965,"ᵍ","")))/LEN(">") -> 14 | E60: 0.07 | F60: 93 | G60: Narumol Charoenma 1980, "The sound systems of Lampang Lamet and Wiangpapao Lua", Master thesis, Mahidol University. | H60: lbn | I60: 19.3882 | J60: 99.57296
A61: 58 | B61: Lua-WiangPaPao | C61: ʲ | D61: =SUM(LEN(H286:H29963)-LEN(SUBSTITUTE(H286:H29963,"ʲ","")))/LEN(">") -> 16 | E61: 0.08 | F61: 92 | G61: Narumol Charoenma 1980, "The sound systems of Lampang Lamet and Wiangpapao Lua", Master thesis, Mahidol University. | H61: lbn | I61: 19.36 | J61: 99.504
A62: 59 | B62: Jru-Laven | C62: l | D62: =SUM(LEN(H321:H29998)-LEN(SUBSTITUTE(H321:H29998,"l","")))/LEN(">") -> 2 | E62: 0.01 | F62: 99 | G62: Jacq, Pascale. 2001. A Description of Jruq (Loven): a Mon-Khmer language of the Lao PDR. MA thesis, Australian National University. | H62: lbo | I62: 15.27261 | J62: 106.32196
A63: 60 | B63: Lawa(Huffman) | C63: ʰ | D63: =SUM(LEN(H290:H29967)-LEN(SUBSTITUTE(H290:H29967,"ʰ","")))/LEN(">") -> 17 | E63: 0.085 | F63: 91.5 | G63: Huffman, Franklin E. 1971. Vocabulary Lists (Mon-Khmer) 20 languages. Unpublished ms. | H63: lwl | I63: 18.279 | J63: 98.112
A64: 61 | B64: Lawa(Ratanakul) | C64: ⁱ | D64: =SUM(LEN(H290:H29967)-LEN(SUBSTITUTE(H290:H29967,"ⁱ","")))/LEN(">") -> 4 | E64: 0.02 | F64: 98 | G64: Ratanakul, Suriya. 1986. Lawa-Thai Dictionary. Institute of Language and Culture for Rural Development, Mahidol University, Salaya. | H64: lcp | I64: 18.22734 | J64: 97.83396
A65: 62 | B65: Lyngngam | C65: \ | D65: =SUM(LEN(H391:H30030)-LEN(SUBSTITUTE(H391:H30030,"\","")))/LEN("\") -> 50 | E65: 0.25 | F65: 75 | G65: Sidwell, Paul, K. S. Nagaraja & Simon Greenhill. 2013. A Lexicostatistical Study of the Khasian Languages: Khasi, Pnar, Lyngngam, and War. Mon-Khmer Studies 42:1–11 | H65: lyg | I65: 25.632 | J65: 91.143
A66: 63 | B66: Mah-Meri | C66: ɣ | D66: =SUM(LEN(H345:H29984)-LEN(SUBSTITUTE(H345:H29984,"ɣ","")))/LEN(">") -> 21 | E66: 0.105 | F66: 89.5 | G66: Burenhult, Niclas. Ms. Spreadsheet of Aslian lexicostatistical data. | H66: mhe | I66: 2.717 | J66: 101.67565
A67: 64 | B67: Mal-T'in | C67: 3 | D67: =SUM(LEN(H309:H29986)-LEN(SUBSTITUTE(H309:H29986,"3","")))/LEN(">") -> 8 | E67: 0.04 | F67: 96 | G67: Filbeck, David. 2009 Mal (Thin) - Thai - English Lexicon. Unpublished manuscript.2009 Sealang/Huffman1971 Sealang (last 10 marked FILMAL) | H67: mlf | I67: 19.24839 | J67: 101.14636
A68: =A67+($B67<>$B68) -> 65 | B68: ManMet | C68: ʸ | D68: =SUM(LEN(H279:H29956)-LEN(SUBSTITUTE(H279:H29956,"ʸ","")))/LEN(">") -> 3 | E68: =D68/200 -> 0.015 | F68: =(1-E68)*100 -> 98.5 | G68: Chen Guoqing [陈国庆]. 2005. A Study of Kemie [Kemie yu yan jiu 克蔑语研究]. Beijing: Ethnic Publishing House [民族出版社]. | H68: mml | I68: 22.07427 | J68: 100.84153
A69: 66 | B69: Mnong-Rölöm | C69: ( | D69: =SUM(LEN(H394:H30033)-LEN(SUBSTITUTE(H394:H30033,"(","")))/LEN("(") -> 5 | E69: 0.025 | F69: 97.5 | G69: Blood, Evangeline. 2005. Mnong-Vietnamese-English Dictionary. Ms. | H69: mng | I69: 12.39385 | J69: 108.35351
A70: 67 | B70: Maniq | C70: ɹ | D70: =SUM(LEN(H348:H29987)-LEN(SUBSTITUTE(H348:H29987,"ɹ","")))/LEN(">") -> 92 | E70: 0.46 | F70: 54 | G70: Burenhult, Niclas. Ms. Spreadsheet of Aslian lexicostatistical data. | H70: mnq | I70: 5.01108 | J70: 102.04727
A71: 68 | B71: Mon | C71: 9 | D71: =SUM(LEN(H307:H29984)-LEN(SUBSTITUTE(H307:H29984,"9","")))/LEN(">") -> 1 | E71: 0.005 | F71: 99.5 | G71: Huffman, Franklin E. 1971. Vocabulary Lists (Mon-Khmer) 20 languages. Unpublished ms. | H71: mnw | I71: 15.81271 | J71: 97.89369
A72: 69 | B72: Muak | C72: ᵏ | D72: =SUM(LEN(H296:H29973)-LEN(SUBSTITUTE(H296:H29973,"ᵏ","")))/LEN(">") -> 1 | E72: 0.005 | F72: 99.5 | G72: Hall, Elizabeth. 2010. A Phonology of Muak Sa-aak. MA thesis, Payap University Thailand. | H72: mqt | I72: 21.1786 | J72: 100.3568
A73: 70 | B73: Mlabri-α | C73: ɵ | D73: =SUM(LEN(H346:H30023)-LEN(SUBSTITUTE(H346:H30023,"ɵ","")))/LEN(">") -> 50 | E73: 0.25 | F73: 75 | G73: Kevin Bätscher, Mlabri lexicon provided for Austroasiatic Handbook. | H73: mra | I73: 18.46712 | J73: 101.03731
A74: 71 | B74: Mlabri-β | C74: 4 | D74: =SUM(LEN(H315:H29992)-LEN(SUBSTITUTE(H315:H29992,"4","")))/LEN(">") -> 21 | E74: 0.105 | F74: 89.5 | G74: Rischel, Jørgen. 1995. Minor Mlabri: A Hunter-Gatherer Language of Northern Indochina. Copenhagen: Museum Tusculanum Publishers.1995 Sealang (last 10 marked RISMLA) | H74: mra | I74: 18.63957 | J74: 101.28868
A75: 72 | B75: Muong-HoaBinh | C75: ᵗ | D75: =SUM(LEN(H291:H29968)-LEN(SUBSTITUTE(H291:H29968,"ᵗ","")))/LEN(">") -> 45 | E75: 0.225 | F75: 77.5 | G75: Ferlus, Michel. 2xx7. Lexique de racines Proto Viet-Muong (Proto Vietic Lexicon). Unpublished manuscript, May 2007. | H75: mtq | I75: 20.73738 | J75: 105.1856
A76: 73 | B76: Mundari-Standard | C76: ᵇ | D76: =SUM(LEN(H309:H29986)-LEN(SUBSTITUTE(H309:H29986,"ᵇ","")))/LEN(">") -> 25 | E76: 0.125 | F76: 87.5 | G76: Pinnow, Heinz-Jürgen. 1959. Versuch Einer Historischen Lautlehre Der Kharia-Sprache. Wiesbaden, Otto Harrassowitz. | H76: unr | I76: 22.5517 | J76: 85.09258
A77: 74 | B77: Muöt | C77: ɱ | D77: =SUM(LEN(H353:H30030)-LEN(SUBSTITUTE(H353:H30030,"ɱ","")))/LEN(">") -> 51 | E77: 0.255 | F77: 74.5 | G77: V.R.Rajasingh. Ms. 2015. Muöt vocabulary. | H77: ncb | I77: 7.94812 | J77: 93.39208
A78: 75 | B78: Nancowri | C78: ᵈ | D78: =SUM(LEN(H309:H29986)-LEN(SUBSTITUTE(H309:H29986,"ᵈ","")))/LEN(">") -> 10 | E78: 0.05 | F78: 95 | G78: Man, Edward H. 1888/1889. A Dictionary of the Central Nicobarese Language. Reprint: Delhi: Sanskaran Prakashak, 1975 | H78: ncb | I78: 7.94812 | J78: 93.39208
A79: 76 | B79: Nyaheun | C79: m | D79: =SUM(LEN(H337:H30014)-LEN(SUBSTITUTE(H337:H30014,"m","")))/LEN(">") -> 4 | E79: 0.02 | F79: 98 | G79: Ferlus, Michel. 1998. Nhaheun-French-English Lexicon, München, Lincom Europa. | H79: nev | I79: 15.10343 | J79: 106.54295
A80: 77 | B80: Nge' | C80: t | D80: =SUM(LEN(H331:H30008)-LEN(SUBSTITUTE(H331:H30008,"t","")))/LEN(">") -> 0 | E80: 0 | F80: 100 | G80: Smith, Ron. 1970. Ngeq rhyming dictionary. Huntington Beach, Summer Institute of Linguistics. | H80: ngt | I80: 15.62109 | J80: 106.8773
A81: 78 | B81: Bru-Talan | C81: ɮ | D81: =SUM(LEN(H369:H30008)-LEN(SUBSTITUTE(H369:H30008,"ɮ","")))/LEN(">") -> 3 | E81: 0.015 | F81: 98.5 | G81: Huffman, Franklin. 1979. Bru-Talan. Ms. | H81: oog | I81: 15.12254 | J81: 106.00126
A82: 79 | B82: Pacoh | C82: u | D82: =SUM(LEN(H332:H30009)-LEN(SUBSTITUTE(H332:H30009,"u","")))/LEN(">") -> 3 | E82: 0.015 | F82: 98.5 | G82: Watson, Richard, Saundra K. Watson and Cubuat. 1979. Pacoh Dictionary: Pacoh-Vietnamese-English. Trilingual Language Lessons, No.25, part 1. Manila, Summer Institute of Linguistics. | H82: pac | I82: 16.44399 | J82: 107.12868
A83: 80 | B83: Pnar | C83: w | D83: =SUM(LEN(H331:H30008)-LEN(SUBSTITUTE(H331:H30008,"w","")))/LEN(">") -> 6 | E83: 0.03 | F83: 97 | G83: Ring, Hiram. 2012. A phonetic description and phonemic analysis of Jowai-Pnar. Mon-Khmer Studies 40:139-181. | H83: pbv | I83: 25.25926 | J83: 92.52823
A84: 81 | B84: Pear-KompongThom | C84: ɾ | D84: =SUM(LEN(H377:H30016)-LEN(SUBSTITUTE(H377:H30016,"ɾ","")))/LEN(">") -> 9 | E84: 0.045 | F84: 95.5 | G84: Baradat, R. 1941b. Les dialectes des tribus samre. Manuscript held at l’Ecole Francaise d’Extreme-Orient, Paris. 267p. | H84: pcb | I84: 13.593 | J84: 105.02774
A85: 82 | B85: Palaung-Dara'ang | C85: ʉ | D85: =SUM(LEN(H357:H30034)-LEN(SUBSTITUTE(H357:H30034,"ʉ","")))/LEN(">") -> 4 | E85: 0.02 | F85: 98 | G85: Supakit Buakaw, Sujaritlak Deepadung, Ampika Rattanapitak, Palaung lexicon provided for Austroasiatic Handbook. | H85: pce | I85: 19.86549 | J85: 99.23332
A86: 83 | B86: Palaung-Kalaw | C86: θ | D86: =SUM(LEN(H395:H30034)-LEN(SUBSTITUTE(H395:H30034,"θ","")))/LEN(">") -> 8 | E86: 0.04 | F86: 96 | G86: Shintani, Tadahiko. 2008. The Palaung Language: Comparative Lexicon of its Southern Dialects. Tokyo, Research Institute for Language and Cultures of Asia and Africa. | H86: pce | I86: 20.6333 | J86: 96.5667
A87: 84 | B87: Palaung-Kengtung | C87: ð | D87: =SUM(LEN(H395:H30034)-LEN(SUBSTITUTE(H395:H30034,"ð","")))/LEN(">") -> 17 | E87: 0.085 | F87: 91.5 | G87: Shintani, Tadahiko. 2008. The Palaung Language: Comparative Lexicon of its Southern Dialects. Tokyo, Research Institute for Language and Cultures of Asia and Africa. | H87: pce | I87: 21.2917 | J87: 99.6083
A88: 85 | B88: Palaung-Namhsan | C88: ˡ | D88: =SUM(LEN(H311:H29988)-LEN(SUBSTITUTE(H311:H29988,"ˡ","")))/LEN(">") -> 1 | E88: 0.005 | F88: 99.5 | G88: Shorto, Harry. Ms. 1957. Palaung wordlist (Based on material collected from Paw´shwe Kya, Namhsan, MS. Sept-Oct.). | H88: pce | I88: 22.965 | J88: 97.163
A89: 86 | B89: Gorum | C89: ᵃ | D89: =SUM(LEN(H323:H30000)-LEN(SUBSTITUTE(H323:H30000,"ᵃ","")))/LEN(">") -> 0 | E89: 0 | F89: 100 | G89: Zide, Arlene R.K. 1982. A Reconstruction of Sora-Gorum Morpholoy. PhD-Dissertation. University of Chicago | H89: pcj | I89: 19.07501 | J89: 83.97234
A90: 87 | B90: Katu-Phuong | C90: - | D90: =SUM(LEN(H408:H30047)-LEN(SUBSTITUTE(H408:H30047,"-","")))/LEN("-") -> 43 | E90: 0.215 | F90: 78.5 | G90: Costello, Nancy A. 1971. Ngữ-vựng Katu: Katu vocabulary. Vietnam Montagnard Language Series 5. Saigon, Department of Education. (Summer Institute of Linguistics Dallas Microfiche). | H90: phg | I90: 16.21184 | J90: 107.4674
A91: 88 | B91: Karii | C91: ƈ | D91: =SUM(LEN(H375:H30014)-LEN(SUBSTITUTE(H375:H30014,"ƈ","")))/LEN(">") -> 6 | E91: 0.03 | F91: 97 | G91: Enfield, Nicholas. n.d. ms. Karii lexicon. | H91: pkt | I91: 17.943 | J91: 105.228
A92: 89 | B92: Malieng | C92: ˢ | D92: =SUM(LEN(H309:H29986)-LEN(SUBSTITUTE(H309:H29986,"ˢ","")))/LEN(">") -> 63 | E92: 0.315 | F92: 68.5 | G92: Ferlus, Michel. 2xx7. Lexique de racines Proto Viet-Muong (Proto Vietic Lexicon). Unpublished manuscript, May 2007. | H92: pkt | I92: 17.94469 | J92: 105.67464
A93: 90 | B93: Bolyu | C93: 6 | D93: =SUM(LEN(H332:H30009)-LEN(SUBSTITUTE(H332:H30009,"6","")))/LEN(">") -> 27 | E93: 0.135 | F93: 86.5 | G93: Edmondson, Jerold. 1996. English-Bolyu Glossary. Mon-Khmer Studies 24:133-159. | H93: ply | I93: 24.70131 | J93: 104.95452
A94: 91 | B94: Phong | C94: 5 | D94: =SUM(LEN(H334:H30011)-LEN(SUBSTITUTE(H334:H30011,"5","")))/LEN(">") -> 19 | E94: 0.095 | F94: 90.5 | G94: Bùi Khánh Thế. 2000. The Phong Language of the Ethnic Phong which live near the Melhir Muong Pon Megalith in Laos. In Pan-Asiatic Linguistics: The Fifth International Symposium on Language and Linguistics, Hochiminh City, National University Hociminh City, pp.199-253Khanh2000 Sealang (last 10 marked BUIPHO) | H94: pnx | I94: 19.96217 | J94: 104.08797
A95: 92 | B95: Wa-Praok | C95: ɓ | D95: =SUM(LEN(H377:H30016)-LEN(SUBSTITUTE(H377:H30016,"ɓ","")))/LEN(">") -> 2 | E95: 0.01 | F95: 99 | G95: Watkins, Justin. 2013. Dictionary of Wa (2 vols.). Leiden and Boston, Brill. | H95: prk | I95: 22.62124 | J95: 99.0428
A96: 93 | B96: Ksinmul | C96: 2 | D96: =SUM(LEN(H339:H30016)-LEN(SUBSTITUTE(H339:H30016,"2","")))/LEN(">") -> 21 | E96: 0.105 | F96: 89.5 | G96: PogibePogibenko, T. G. and Bùi Khánh-Thê. 1990. Iazyk Ksingmul. Materialy sovetsko-v'etnamskoj lingvisticheskoj ekspeditsii 1979 goda. Moscow, Nauka.nko1990 Sealang (last 10 marked POGKSI) | H96: puo | I96: 21.02809 | J96: 104.0259
A97: 94 | B97: Rumai | C97: ⁿ | D97: =SUM(LEN(H318:H29995)-LEN(SUBSTITUTE(H318:H29995,"ⁿ","")))/LEN(">") -> 18 | E97: 0.09 | F97: 91 | G97: Newlands, Elizabeth. Ms. Riang lexicon. Unpublished. | H97: rbb | I97: 23.13363 | J97: 96.67992
A98: 95 | B98: Rengao | C98: @ | D98: =SUM(LEN(H426:H30065)-LEN(SUBSTITUTE(H426:H30065,"@","")))/LEN("@") -> 4 | E98: 0.02 | F98: 98 | G98: Gregerson, Kenneth. & Marilyn Gregerson. 1977. Rengao Vocabulary. Manila, Summer Institute of Linguistics. | H98: ren | I98: 14.6066 | J98: 107.85923
A99: 96 | B99: Riang-Sak | C99: ᵐ | D99: =SUM(LEN(H321:H29998)-LEN(SUBSTITUTE(H321:H29998,"ᵐ","")))/LEN(">") -> 3 | E99: 0.015 | F99: 98.5 | G99: Luce, Gordon H. 1964. Comparative Lexicon (typeset with Corrections in Red and Green) English - Danaw - RiangSak - Rianglang. | H99: ril | I99: 24.06359 | J99: 98.76231
A100: =A99+($B99<>$B100) -> 97 | B100: Ramam | C100: $ | D100: =SUM(LEN(H429:H30068)-LEN(SUBSTITUTE(H429:H30068,"$","")))/LEN("$") -> 27 | E100: =D100/200 -> 0.135 | F100: =(1-E100)*100 -> 86.5 | G100: Sidwell ms. Fieldnotes. | H100: rmx | I100: 14.33996 | J100: 107.44707
A101: 98 | B101: Santali | C101: ə | D101: =SUM(LEN(H405:H30044)-LEN(SUBSTITUTE(H405:H30044,"ə","")))/LEN(">") -> 5 | E101: 0.025 | F101: 97.5 | G101: Minegishi, Makoto & Ganesh Murmu. 2001. Santali Basic Lexicon with Grammatical Notes. Tokyo: Institute for the Languages and Cultures of Asia and Africa, Tokyo University of Foreign Studies (Asian and African Lexicon Series No. 38). | H101: sat | I101: 23.9076 | J101: 87.11775
A102: 99 | B102: Ruc | C102: ᵘ | D102: =SUM(LEN(H317:H29994)-LEN(SUBSTITUTE(H317:H29994,"ᵘ","")))/LEN(">") -> 7 | E102: 0.035 | F102: 96.5 | G102: Nguyên Phú Phong, Tr`ân Trí Doi, Michel Ferlus. 1998. Lexique vietnamien-ruc-français. Paris, Sudestasie. | H102: scb | I102: 17.986 | J102: 105.658
A103: 100 | B103: Semai | C103: c | D103: =SUM(LEN(H371:H30048)-LEN(SUBSTITUTE(H371:H30048,"c","")))/LEN(">") -> 3 | E103: 0.015 | F103: 98.5 | G103: Means, Natalie & Paul Means. 1987. Senoi-English, English-Senoi Dictionary. The Joint Centre on Modern East Asia, University of Toronto and York University. | H103: sea | I103: 4.13257 | J103: 101.47651
A104: 101 | B104: Sedang | C104: n | D104: =SUM(LEN(H361:H30038)-LEN(SUBSTITUTE(H361:H30038,"n","")))/LEN(">") -> 4 | E104: 0.02 | F104: 98 | G104: Smith, Kenneth. 2000. Sedang Dictionary. Mon-Khmer Studies Special Volume No.1. Mahidol University at Salaya and the Summer Institute of Linguistics Dallas. | H104: sed | I104: 14.77933 | J104: 108.02703
A105: 102 | B105: ShomPen | C105: χ | D105: =SUM(LEN(H382:H30059)-LEN(SUBSTITUTE(H382:H30059,"χ","")))/LEN(">") -> 41 | E105: 0.205 | F105: 79.5 | G105: Chattopadhyay, Subhash Chandra and Asok Kumar Mukhopadhyay. 2003. The language of the Shompen of Great Nicobar: a preliminary appraisal. Kolkata, Anthropological Survey of India | H105: sii | I105: 7.02099 | J105: 93.80636
A106: 103 | B106: Sapuan | C106: ; | D106: =SUM(LEN(H420:H30059)-LEN(SUBSTITUTE(H420:H30059,";","")))/LEN(";") -> 27 | E106: 0.135 | F106: 86.5 | G106: Jacq, Pascale & Paul Sidwell, 1999. Sapuan (səpuar). München, Lincom Europa. | H106: spu | I106: 15.36919 | J106: 106.84294
A107: 104 | B107: Sora | C107: ɤ | D107: =SUM(LEN(H408:H30047)-LEN(SUBSTITUTE(H408:H30047,"ɤ","")))/LEN(">") -> 3 | E107: 0.015 | F107: 98.5 | G107: Zide, Arlene R. K. 1982. A reconstruction of Proto-Sora-Turay-Goran phonology. Ph D dissertation, University of Chicago. | H107: srb | I107: 19.12127 | J107: 84.19005
A108: 105 | B108: Semnam | C108: ! | D108: =SUM(LEN(H431:H30070)-LEN(SUBSTITUTE(H431:H30070,"!","")))/LEN("!") -> 24 | E108: 0.12 | F108: 88 | G108: Burenhult, Niclas & Claudia Wegener. 2009. Preliminary Notes on the Phonology, Orthography, and Vocabulary of Semnam. Austroasiatic, Malay Peninsula). Journal of the Southeast Asian Linguistics Society 1:283-311 | H108: ssm | I108: 5.27617 | J108: 101.05796
A109: 106 | B109: Mankong | C109: ɲ | D109: =SUM(LEN(H416:H30055)-LEN(SUBSTITUTE(H416:H30055,"ɲ","")))/LEN(">") -> 7 | E109: 0.035 | F109: 96.5 | G109: Huffman, Franklin. 1979. Mankong lexicon. Ms. | H109: sss | I109: 16.7 | J109: 106.2
A110: 107 | B110: So-Khammouane | C110: ɬ | D110: =SUM(LEN(H400:H30039)-LEN(SUBSTITUTE(H400:H30039,"ɬ","")))/LEN(">") -> 1 | E110: 0.005 | F110: 99.5 | G110: Huffman, Franklin. 1979. So-Khammouane lexicon. Ms. | H110: sss | I110: 16.896 | J110: 104.957
A111: 108 | B111: So-SakonNakhon | C111: ɭ | D111: =SUM(LEN(H400:H30039)-LEN(SUBSTITUTE(H400:H30039,"ɭ","")))/LEN(">") -> 2 | E111: 0.01 | F111: 99 | G111: Huffman, Franklin. 1979. So-SakonNakhon. Ms. | H111: sss | I111: 17.1546 | J111: 104.1348
A112: 109 | B112: Stieng | C112: p | D112: =SUM(LEN(H367:H30044)-LEN(SUBSTITUTE(H367:H30044,"p","")))/LEN(">") -> 3 | E112: 0.015 | F112: 98.5 | G112: Huffman, Franklin E. 1971. Vocabulary Lists (Mon-Khmer) 20 languages. Unpublished ms. | H112: sti | I112: 11.81581 | J112: 107.04075
A113: 110 | B113: Chong-Samre | C113: > | D113: =SUM(LEN(H424:H30063)-LEN(SUBSTITUTE(H424:H30063,">","")))/LEN("^") -> 49 | E113: 0.245 | F113: 75.5 | G113: Pornsawan Ploykaew. 2001. Samre Grammar. MA thesis, Mahidol University, Thailand. | H113: sxm | I113: 13.47899 | J113: 103.978
A114: 111 | B114: Semelai | C114: d | D114: =SUM(LEN(H381:H30058)-LEN(SUBSTITUTE(H381:H30058,"d","")))/LEN(">") -> 24 | E114: 0.12 | F114: 88 | G114: Kruspe, Nicole D. 2004. A grammar of Semelai. Cambridge, Cambridge University Press. | H114: sza | I114: 2.82799 | J114: 102.8062
A115: 112 | B115: Temiar | C115: e | D115: =SUM(LEN(H381:H30058)-LEN(SUBSTITUTE(H381:H30058,"e","")))/LEN(">") -> 12 | E115: 0.06 | F115: 94 | G115: Means, Natalie. 1999. Temiar-English, English-Temiar Dictionary. Minnesota, Hamline University Press. | H115: tea | I115: 4.974 | J115: 101.43761
A116: 113 | B116: Ahoe | C116: ç | D116: =SUM(LEN(H402:H30041)-LEN(SUBSTITUTE(H402:H30041,"ç","")))/LEN(">") -> 58 | E116: 0.29 | F116: 71 | G116: Enfield, Nicholas. 2011 ms. Ahoe lexicon. | H116: thm | I116: 18.184 | J116: 104.962 | K116: check
A117: 114 | B117: Thavung-Khammouan | C117: ɕ | D117: =SUM(LEN(H402:H30041)-LEN(SUBSTITUTE(H402:H30041,"ɕ","")))/LEN(">") -> 34 | E117: 0.17 | F117: 83 | G117: Ferlus, Michel. 1979. Lexique thavung-français. Cahiers de Linguistique, Asie Orientale 5:71-94. | H117: thm | I117: 18.23695 | J117: 105.01158 | K117: check
A118: 115 | B118: Thavung-Sakonnakorn | C118: ᵛ | D118: =SUM(LEN(H332:H30009)-LEN(SUBSTITUTE(H332:H30009,"ᵛ","")))/LEN(">") -> 8 | E118: 0.04 | F118: 96 | G118: Suwilai Premsrirat. 2000. So (Thavung) Preliminary Dictionary. Salaya & Melbourne, Institute of Language and Culture for Rural Development, Mahidol University and the University of Melbourne. 2000 Sealang (last 10 marked SUWTHA) | H118: thm | I118: 17.29401 | J118: 103.44551
A119: 116 | B119: Tampuan | C119: q | D119: =SUM(LEN(H373:H30050)-LEN(SUBSTITUTE(H373:H30050,"q","")))/LEN(">") -> 2 | E119: 0.01 | F119: 99 | G119: Huffman, Franklin E. 1971. Vocabulary Lists (Mon-Khmer) 20 languages. Unpublished ms. | H119: tpu | I119: 13.56447 | J119: 107.24544
A120: 117 | B120: TaOi | C120: & | D120: =SUM(LEN(H439:H30078)-LEN(SUBSTITUTE(H439:H30078,"&","")))/LEN("&") -> 6 | E120: 0.03 | F120: 97 | G120: Huffman, Franklin. 1979. Ta-oih lexicon. Ms. | H120: tto | I120: 15.9083 | J120: 106.87347
A121: 118 | B121: Idu | C121: ʙ | D121: 0 | E121: 0 | F121: 100 | G121: Suwilai Premsrirat. 2014. ms. Idu lexicon. | H121: tyh | I121: 19.27371 | J121: 103.77634
A122: 119 | B122: Ơdu | C122: ^ | D122: =SUM(LEN(H432:H30071)-LEN(SUBSTITUTE(H432:H30071,"^","")))/LEN(">") -> 56 | E122: 0.28 | F122: 72 | G122: Ðặng Nghiêm Vạn. 1983. Mảng / Ơđu vocabulary. Unpublished manuscript prepared in Hanoi for Michel Ferlus. | H122: tyh | I122: 19.42572 | J122: 104.43595
A123: 120 | B123: U | C123: ᵒ | D123: =SUM(LEN(H343:H30020)-LEN(SUBSTITUTE(H343:H30020,"ᵒ","")))/LEN(">") -> 26 | E123: 0.13 | F123: 87 | G123: Svantesson, Jan-Olof. 1988. U. Linguistics of the Tibeto-Burman Area, 11.1:64-133. | H123: uuu | I123: 22.67668 | J123: 101.77163
A124: 121 | B124: Vietnamese | C124: ʷ | D124: =SUM(LEN(H337:H30014)-LEN(SUBSTITUTE(H337:H30014,"ʷ","")))/LEN(">") -> 2 | E124: 0.01 | F124: 99 | G124: Standard Vietnamese, various sources. | H124: vie | I124: 17.11945 | J124: 106.91747
A125: 122 | B125: Mang | C125: 8 | D125: =SUM(LEN(H362:H30039)-LEN(SUBSTITUTE(H362:H30039,"8","")))/LEN(">") -> 6 | E125: 0.03 | F125: 97 | G125: Nguyễn Văn Lợi. 2008. Tiếng Mảng. Hanoi, Nhả xuất bản Khoa học Xã hội. | H125: zng | I125: 22.37722 | J125: 103.14238
A126: =A125+($B125<>$B126) -> 123 | C126: ᶻ | D126: =SUM(LEN(H336:H30013)-LEN(SUBSTITUTE(H336:H30013,"ᶻ","")))/LEN(">") -> 0 | E126: =D126/200 -> 0 | F126: =(1-E126)*100 -> 100
A131: Our list | C131: SWa-Praokdesh 100 | D131: Equivalents (84/100) | E131: Code | F131: Notes | H131: SWa-Praokdesh 200 | I131: Equivalents (119/201) | J131: Code | K131: Notes
A132: alcohol/liquor | C132: all | D132: - | E132: 100 | H132: all | I132: - | J132: 200
A133: alive/live | C133: ashes | D133: ashes | E133: 100 | H133: and | I133: - | J133: 200
A134: ant | C134: bark (of a tree) | D134: skin/bark | E134: 100 | H134: animal | I134: - | J134: 200
A135: arrow | C135: belly | D135: belly/stomach | E135: 100 | H135: ashes | I135: ashes | J135: 200
A136: ashes | C136: big | D136: - | E136: 100 | H136: at | I136: - | J136: 200
A137: bamboo | C137: bird | D137: bird | E137: 100 | H137: back | I137: - | J137: 200
A138: banana | C138: black | D138: black | E138: 100 | H138: bad | I138: - | J138: 200
A139: beans/peas | C139: blood | D139: blood | E139: 100 | H139: bark (of a tree) | I139: skin/bark | J139: 200
A140: bear | C140: bone | D140: bone | E140: 100 | H140: because | I140: - | J140: 200
A141: bee/honeybee | C141: breast | D141: breast | E141: 100 | H141: belly | I141: belly/stomach | J141: 200
A142: belly/stomach | C142: cloud | D142: cloud | E142: 100 | H142: big | I142: - | J142: 200
A143: bird | C143: cold | D143: cold | E143: 100 | H143: bird | I143: bird | J143: 200
A144: bitter | C144: dog | D144: dog | E144: 100 | H144: black | I144: black | J144: 200
A145: black | C145: dry | D145: dry | E145: 100 | H145: blood | I145: blood | J145: 200
A146: blood | C146: ear | D146: ear | E146: 100 | H146: bone | I146: bone | J146: 200
A147: boat | C147: earth | D147: earth (soil) | E147: 100 | H147: child (young) | I147: child/son | J147: 200
A148: body hair/feathers | C148: egg | D148: egg | E148: 100 | H148: cloud | I148: cloud | J148: 200
A149: bone | C149: eye | D149: eye | E149: 100 | H149: cold (weather) | I149: cold | J149: 200
A150: bow, crossbow | C150: fat (noun) | D150: fat/oil/grease | E150: 100 | H150: day (not night) | I150: - | J150: 200 | K150: have "sun/day" below
A151: brain | C151: feather | D151: body hair/feathers | E151: 100 | F151: assume same | H151: dirty | I151: - | J151: 200
A152: branch | C152: fingernail | D152: nail/claw | E152: 100 | H152: dog | I152: dog | J152: 200
A153: breast | C153: fire | D153: fire | E153: 100 | H153: dry (substance) | I153: dry | J153: 200
A154: chicken/fowl | C154: fish | D154: fish | E154: 100 | H154: dull (knife) | I154: - | J154: 200
A155: child/son | C155: foot | D155: foot | E155: 100 | H155: dust | I155: - | J155: 200
A156: cloud | C156: full | D156: full | E156: 100 | H156: ear | I156: ear | J156: 200
A157: cold | C157: good | D157: - | E157: 100 | H157: earth (soil) | I157: earth (soil) | J157: 200
A158: dog | C158: green | D158: green | E158: 100 | H158: egg | I158: egg | J158: 200
A159: ear | C159: hair | D159: hair (head) | E159: 100 | H159: eye | I159: eye | J159: 200
A160: earth (soil) | C160: hand | D160: hand | E160: 100 | H160: far | I160: far/distant | J160: 200
A161: egg | C161: head | D161: head | E161: 100 | H161: fat (substance) | I161: fat/oil/grease | J161: 200
A162: eight | C162: heart (organ) | D162: heart | E162: 100 | H162: father | I162: - | J162: 200
A163: eye | C163: horn | D163: horn | E163: 100 | H163: feather (large) | I163: body hair/feathers | J163: 200 | K163: assume same
A164: far/distant | C164: I | D164: I, me | E164: 100 | H164: few | I164: - | J164: 200
A165: fat/oil/grease | C165: knee | D165: - | E165: 100 | H165: fire | I165: fire | J165: 200
A166: fear/afraid | C166: leaf | D166: leaf | E166: 100 | H166: fish | I166: fish | J166: 200
A167: feces/excrement/shit | C167: liver | D167: liver | E167: 100 | H167: five | I167: five | J167: 200
A168: field (irrigated) | C168: long | D168: long | E168: 100 | H168: flower | I168: flower | J168: 200
A169: field (swidden/hill) | C169: louse | D169: louse | E169: 100 | H169: fog | I169: - | J169: 200
A170: finger | C170: man (adult male) | D170: man/husband | E170: 100 | H170: foot | I170: foot | J170: 200
A171: fire | C171: man (human being) | D171: person | E171: 100 | H171: four | I171: four | J171: 200
A172: fish | C172: many | D172: many | E172: 100 | H172: fruit | I172: fruit | J172: 200
A173: five | C173: meat | D173: flesh/meat | E173: 100 | H173: good | I173: - | J173: 200
A174: flesh/meat | C174: moon | D174: moon | E174: 100 | H174: grass | I174: grass | J174: 200
A175: flower | C175: mountain | D175: mountain | E175: 100 | H175: green | I175: green | J175: 200
A176: foot | C176: mouth | D176: mouth | E176: 100 | H176: guts | I176: intestine/gut | J176: 200
A177: four | C177: name | D177: name | E177: 100 | H177: hair | I177: hair (head) | J177: 200
A178: frog | C178: neck | D178: neck | E178: 100 | H178: hand | I178: hand | J178: 200
A179: fruit | C179: new | D179: new | E179: 100 | H179: he | I179: - | J179: 200
A180: full | C180: night | D180: night | E180: 100 | H180: head | I180: head | J180: 200
A181: grandchild | C181: nose | D181: nose | E181: 100 | H181: heart | I181: heart | J181: 200
A182: grass | C182: not | D182: - | E182: 100 | H182: heavy | I182: heavy | J182: 200
A183: hair (head) | C183: one | D183: one | E183: 100 | H183: here | I183: - | J183: 200
A184: hand | C184: rain | D184: rain | E184: 100 | H184: how | I184: - | J184: 200
A185: head | C185: red | D185: red | E185: 100 | H185: husband | I185: - | J185: 200
A186: heart | C186: road | D186: road/path | E186: 100 | H186: I | I186: I, me | J186: 200
A187: heavy | C187: root | D187: root | E187: 100 | H187: ice | I187: - | J187: 200
A188: horn | C188: round | D188: round | E188: 100 | H188: if | I188: - | J188: 200
A189: hot/warm | C189: sand | D189: sand | E189: 100 | H189: in | I189: - | J189: 200
A190: house | C190: seed | D190: seed | E190: 100 | H190: lake | I190: - | J190: 200
A191: hundred | C191: skin | D191: skin/bark | E191: 100 | H191: leaf | I191: leaf | J191: 200
A192: I, me | C192: small | D192: - | E192: 100 | H192: left (hand) | I192: left (side) | J192: 200
A193: intestine/gut | C193: smoke | D193: smoke | E193: 100 | H193: leg | I193: - | J193: 200
A194: iron | C194: star | D194: star | E194: 100 | H194: liver | I194: liver | J194: 200
A195: leaf | C195: stone | D195: stone | E195: 100 | H195: long | I195: long | J195: 200
A196: leech (land) | C196: sun | D196: sun/day | E196: 100 | H196: louse | I196: louse | J196: 200
A197: left (side) | C197: tail | D197: tail | E197: 100 | H197: man (male) | I197: man/husband | J197: 200
A198: light (weight) | C198: that | D198: - | E198: 100 | H198: many | I198: many | J198: 200
A199: liver | C199: this | D199: - | E199: 100 | H199: meat (flesh) | I199: flesh/meat | J199: 200
A200: long | C200: to bite | D200: to bite | E200: 100 | H200: moon | I200: moon | J200: 200 | K200: not in official 200
A201: louse | C201: to burn | D201: to burn (tr.) | E201: 100 | F201: assume tr. | H201: mother | I201: - | J201: 200
A202: many | C202: to come | D202: - | E202: 100 | H202: mountain | I202: mountain | J202: 200
A203: medicine/juice | C203: to die | D203: to die | E203: 100 | H203: mouth | I203: mouth | J203: 200
A204: monkey/ape | C204: to drink | D204: to drink (water) | E204: 100 | H204: name | I204: name | J204: 200
... 4294 more rows

Sheet Sheet2

Sheet Sheet3
